[Event "Biel Master Tournament 2019"]
[Site "Biel"]
[Date "2019.07.29"]
[Round "7.19"]
[White "Bisby, Daniel L"]
[Black "Bellahcene, Bilel"]
[Result "0-1"]
[ECO "B90"]
[WhiteElo "2335"]
[BlackElo "2541"]
[Annotator "ChessBase"]
[PlyCount "114"]
[EventDate "2019.07.20"]
[EventType "swiss"]
[EventCountry "SUI"]
[SourceTitle "playchess.com"]
[Source "ChessBase"]
[SourceQuality "1"]
[TimeControl "40/5400+30:1800+30"]

1. e4 {[%emt 0:01:07]} c5 {[%emt 0:08:31]} 2. Nf3 {[%emt 0:00:00]} d6 {[%emt 0:00:04]} 3. d4 {[%emt 0:00:05]} cxd4 {[%emt 0:00:03]} 4. Nxd4 {[%emt 0:00:06]} Nf6 {[%emt 0:00:03]} 5. Nc3 {[%emt 0:00:22]} a6 {[%emt 0:00:05]} 6. f3 {[%emt 0:00:57]} Qb6 {[%emt 0:00:21]} 7. a3 {[%emt 0:10:59]} e5 {[%emt 0:01:49]} 8. Nb3 {[%emt 0:01:58]} Be6 {[%emt 0:01:11]} 9. Nd5 {[%emt 0:10:06]} Bxd5 {[%emt 0:00:14]} 10. exd5 {[%emt 0:00:05]} Nbd7 {[%emt 0:00:08]} 11. Qd3 {[%emt 0:05:00]} g6 {[%emt 0:00:10]} 12. Be3 {[%emt 0:00:44]} Qc7 {[%emt 0:00:05]} 13. Be2 {[%emt 0:02:06]} Bg7 {[%emt 0:01:08]} 14. O-O {[%emt 0:01:40]} O-O {[%emt 0:04:25]} 15. Rac1 {[%emt 0:07:51]} Rfe8 {[%emt 0:06:27]} 16. Qd2 {[%emt 0:01:55]} a5 {[%emt 0:01:35]} 17. a4 {[%emt 0:14:26]} Re7 {[%emt 0:02:56]} 18. Kh1 {[%emt 0:04:33]} h5 {[%emt 0:01:32]} 19. Bg5 {[%emt 0:09:06]} e4 {[%emt 0:08:00]} 20. Nd4 {[%emt 0:08:03]} Qc5 {[%emt 0:03:08]} 21. Nb3 {[%emt 0:05:41]} e3 {[%emt 0:02:18]} 22. Qd3 {[%emt 0:01:04]} Qa7 {[%emt 0:01:57]} 23. f4 {[%emt 0:01:04]} Re4 {[%emt 0:04:23]} 24. Rce1 {[%emt 0:06:21]} Rae8 {[%emt 0:10:30]} 25. Qb5 {[%emt 0:00:15]} Ra8 {[%emt 0:06:19]} 26. c3 {[%emt 0:01:22]} Nf8 {[%emt 0:02:30]} 27. Bf3 {[%emt 0:03:21]} Ree8 {[%emt 0:00:33]} 28. f5 {[%emt 0:00:50]} N8h7 {[%emt 0:05:46]} 29. Bf4 {[%emt 0:00:18]} g5 {[%emt 0:02:26]} 30. Bxd6 {[%emt 0:00:23]} g4 {[%emt 0:00:01]} 31. Be2 {[%emt 0:00:49]} Ne4 {[%emt 0:02:28]} 32. Bc7 {[%emt 0:00:33]} Be5 {[%emt 0:03:35]} 33. Bxe5 {[%emt 0:01:11]} Rxe5 {[%emt 0:00:01]} 34. Nd4 {[%emt 0:01:21]} Nhf6 {[%emt 0:00:28]} 35. Kg1 {[%emt 0:01:03]} Rae8 {[%emt 0:01:03]} 36. Qd3 {[%emt 0:00:33]} Nf2 {[%emt 0:02:16]} 37. Qc4 {[%emt 0:00:17]} Rxd5 {[%emt 0:00:19]} 38. Qc7 {[%emt 0:00:18]} Rde5 {[%emt 0:05:33]} 39. Bb5 {[%emt 0:00:28]} R8e7 {[%emt 0:07:29]} 40. Qd8+ {[%emt 0:00:15]} Kg7 {[%emt 0:00:02]} 41. Ne6+ {[%emt 0:07:31]} R7xe6 {[%emt 0:00:19]} 42. fxe6 {[%emt 0:02:28]} Rxe6 {[%emt 0:01:56]} 43. Re2 {[%emt 0:00:50]} Qc5 {[%emt 0:04:25]} 44. Rfe1 {[%emt 0:02:04]} Qg5 {[%emt 0:05:37]} 45. Bc4 {[%emt 0:02:50]} g3 {[%emt 0:05:05]} 46. h3 {[%emt 0:01:01]} Re4 {[%emt 0:12:16]} 47. Qc7 {[%emt 0:03:08]} Kh6 {[%emt 0:00:59]} 48. Qxf7 {[%emt 0:06:30]} Qf4 {[%emt 0:00:16]} 49. Be6 {[%emt 0:01:09]} Kg5 {[%emt 0:02:30]} 50. Bc8 {[%emt 0:02:01]} b6 {[%emt 0:02:03]} 51. Qb7 {[%emt 0:01:49]} Re8 {[%emt 0:04:58]} 52. Qg7+ {[%emt 0:03:03]} Kh4 {[%emt 0:00:06]} 53. Bd7 {[%emt 0:00:16]} Rd8 {[%emt 0:01:09]} 54. Bc6 {[%emt 0:01:25]} Rd2 {[%emt 0:00:15]} 55. Qe7 {[%emt 0:01:34]} Nd3 {[%emt 0:03:03]} 56. Rxe3 {[%emt 0:01:07]} Nxe1 {[%emt 0:00:25]} 57. Re4 {[%emt 0:00:22]} Rxg2+ {[%emt 0:00:37]} 0-1

[Event "Biel Master Tournament 2019"]
[Site "Biel"]
[Date "2019.07.29"]
[Round "7.20"]
[White "Stany, G.A."]
[Black "Samant Aditya S"]
[Result "1/2-1/2"]
[ECO "B54"]
[WhiteElo "2525"]
[BlackElo "2296"]
[Annotator "ChessBase"]
[PlyCount "95"]
[EventDate "2019.07.20"]
[EventType "swiss"]
[EventCountry "SUI"]
[SourceTitle "playchess.com"]
[Source "ChessBase"]
[SourceQuality "1"]
[TimeControl "40/5400+30:1800+30"]

1. e4 {[%emt 0:00:00]} c5 {[%emt 0:00:00]} 2. Nf3 {[%emt 0:00:00]} d6 {[%emt 0:00:00]} 3. Bb5+ {[%emt 0:00:00]} Bd7 {[%emt 0:00:00]} 4. c4 {[%emt 0:00:00]} Nc6 {[%emt 0:00:51]} 5. d4 {[%emt 0:01:12]} cxd4 {[%emt 0:00:09]} 6. Nxd4 {[%emt 0:00:04]} Nf6 {[%emt 0:00:16]} 7. Nc3 {[%emt 0:00:05]} g6 {[%emt 0:02:34]} 8. O-O {[%emt 0:00:18]} Bg7 {[%emt 0:00:08]} 9. Nxc6 {[%emt 0:00:47]} bxc6 {[%emt 0:01:00]} 10. Ba4 {[%emt 0:00:05]} O-O {[%emt 0:00:17]} 11. Re1 {[%emt 0:00:43]} Qb6 {[%emt 0:06:56]} 12. h3 {[%emt 0:03:16]} Be6 {[%emt 0:03:52]} 13. Bb3 {[%emt 0:07:20]} Nd7 {[%emt 0:03:38]} 14. Be3 {[%emt 0:01:38]} Qb4 {[%emt 0:08:12]} 15. Bd2 {[%emt 0:04:54]} Qb7 {[%emt 0:04:21]} 16. Na4 {[%emt 0:00:53]} Nb6 {[%emt 0:05:41]} 17. Nxb6 {[%emt 0:02:18]} axb6 {[%emt 0:00:15]} 18. Qc2 {[%emt 0:13:05]} b5 {[%emt 0:04:44]} 19. c5 {[%emt 0:02:39]} Bxb3 {[%emt 0:01:36]} 20. axb3 {[%emt 0:00:06]} dxc5 {[%emt 0:01:42]} 21. Rxa8 {[%emt 0:08:13]} Rxa8 {[%emt 0:00:30]} 22. e5 {[%emt 0:02:16]} Rd8 {[%emt 0:03:35]} 23. f4 {[%emt 0:03:24]} c4 {[%emt 0:07:20]} 24. bxc4 {[%emt 0:00:53]} bxc4 {[%emt 0:00:06]} 25. Re4 {[%emt 0:04:42]} Qb5 {[%emt 0:14:58]} 26. Bc1 {[%emt 0:09:40]} f6 {[%emt 0:05:41]} 27. exf6 {[%emt 0:05:48]} Bxf6 {[%emt 0:00:57]} 28. Rxc4 {[%emt 0:02:21]} Rd1+ {[%emt 0:02:06]} 29. Kh2 {[%emt 0:04:18]} Rd6 {[%emt 0:03:10]} 30. b3 {[%emt 0:03:54]} Kf7 {[%emt 0:05:31]} 31. Ba3 {[%emt 0:07:48]} Re6 {[%emt 0:03:30]} 32. Bc5 {[%emt 0:00:32]} Qb8 {[%emt 0:02:28]} 33. Qd3 {[%emt 0:04:03]} Qc7 {[%emt 0:01:48]} 34. Kg3 {[%emt 0:03:07]} Qa5 {[%emt 0:02:15]} 35. Rc2 {[%emt 0:02:23]} Qe1+ {[%emt 0:00:45]} 36. Bf2 {[%emt 0:00:33]} Qb4 {[%emt 0:01:25]} 37. Rc4 {[%emt 0:02:08]} Qd6 {[%emt 0:00:57]} 38. Qc2 {[%emt 0:01:13]} Qd5 {[%emt 0:02:00]} 39. Rc5 {[%emt 0:00:12]} Qd6 {[%emt 0:00:21]} 40. Qc4 {[%emt 0:01:47]} Kg7 {[%emt 0:02:09]} 41. Kh2 {[%emt 0:04:20]} Qd7 {[%emt 0:03:16]} 42. Ra5 {[%emt 0:05:48]} Rd6 {[%emt 0:01:34]} 43. Bc5 {[%emt 0:01:31]} Rd5 {[%emt 0:17:49]} 44. Ra7 {[%emt 0:00:20]} Qe6 {[%emt 0:00:45]} 45. Qb4 {[%emt 0:13:07]} Kf7 {[%emt 0:04:31]} 46. Ra8 {[%emt 0:00:10]} Bg7 {[%emt 0:01:51]} 47. Ra7 {[%emt 0:03:39]} Rd7 {[%emt 0:00:56]} 48. Rxd7 {[%emt 0:01:13]} 1/2-1/2

[Event "Biel Master Tournament 2019"]
[Site "Biel"]
[Date "2019.07.30"]
[Round "8.4"]
[White "Gukesh D"]
[Black "Salem, A.R. Saleh"]
[Result "1/2-1/2"]
[ECO "D02"]
[WhiteElo "2520"]
[BlackElo "2672"]
[Annotator "RC"]
[PlyCount "41"]
[EventDate "2019.07.20"]
[EventType "swiss"]
[EventCountry "SUI"]
[SourceTitle "playchess.com"]
[Source "ChessBase"]
[SourceQuality "1"]
[TimeControl "40/5400+30:1800+30"]

1. d4 {[%emt 0:00:00]} Nf6 {[%emt 0:02:31]} 2. Nf3 {[%emt 0:00:26]} e6 {[%emt 0:03:43]} 3. g3 {[%emt 0:01:35]} c5 {[%emt 0:02:34]} 4. Bg2 {[%emt 0:03:19]} cxd4 {[%emt 0:00:09]} 5. Nxd4 {[%emt 0:05:56]} d5 {[%emt 0:00:10]} 6. O-O {[%emt 0:05:48]} e5 {[%emt 0:07:01]} 7. Nf3 {[%emt 0:02:27]} Qc7 {[%emt 0:15:20]} 8. c4 {[%emt 0:08:59]} dxc4 {[%emt 0:07:49]} 9. Nc3 {[%emt 0:01:18]} Bc5 {[%emt 0:05:37]} 10. Nb5 {[%emt 0:34:23]} Qb6 {[%emt 0:07:36]} 11. Na3 {[%emt 0:01:48]} Bxa3 {[%emt 0:08:48]} 12. Qa4+ {[%emt 0:00:10]} Nc6 {[%emt 0:01:01]} 13. Qxa3 {[%emt 0:00:09]} Be6 {[%emt 0:09:53]} 14. Bg5 {[%emt 0:06:22]} a5 {[%emt 0:05:13]} 15. Nd2 {[%emt 0:12:16]} Qb4 {[%emt 0:10:57]} 16. Qxb4 {[%emt 0:01:08]} axb4 {[%emt 0:00:10]} 17. Bxc6+ {[%emt 0:00:25]} bxc6 {[%emt 0:00:01]} 18. Rfc1 {[%emt 0:00:10]} Nd7 {[%emt 0:05:03]} 19. Nxc4 {[%emt 0:00:10]} f6 {[%emt 0:00:06]} 20. Be3 {[%emt 0:01:46]} Ke7 {[%emt 0:01:57]} 21. a3 {[%emt 0:03:22]} 1/2-1/2

[Event "Biel Master Tournament 2019"]
[Site "Biel"]
[Date "2019.07.30"]
[Round "8.8"]
[White "Gopal G.N."]
[Black "Puranik, Abhimanyu"]
[Result "1/2-1/2"]
[ECO "C78"]
[WhiteElo "2594"]
[BlackElo "2550"]
[Annotator "ChessBase"]
[PlyCount "47"]
[EventDate "2019.07.20"]
[EventType "swiss"]
[EventCountry "SUI"]
[SourceTitle "playchess.com"]
[Source "ChessBase"]
[SourceQuality "1"]
[TimeControl "40/5400+30:1800+30"]

1. e4 {[%emt 0:00:00]} e5 {[%emt 0:00:00]} 2. Nf3 {[%emt 0:00:00]} Nc6 {[%emt 0:00:00]} 3. Bb5 {[%emt 0:00:00]} a6 {[%emt 0:00:00]} 4. Ba4 {[%emt 0:00:00]} Nf6 {[%emt 0:00:00]} 5. O-O {[%emt 0:00:00]} Bc5 {[%emt 0:00:01]} 6. c3 {[%emt 0:00:24]} O-O {[%emt 0:00:07]} 7. d4 {[%emt 0:00:06]} Ba7 {[%emt 0:00:09]} 8. dxe5 {[%emt 0:05:44]} Nxe4 {[%emt 0:00:05]} 9. Qd5 {[%emt 0:00:13]} Nc5 {[%emt 0:00:07]} 10. Bc2 {[%emt 0:00:04]} Ne7 {[%emt 0:00:05]} 11. Qd1 {[%emt 0:00:10]} d5 {[%emt 0:00:13]} 12. exd6 {[%emt 0:00:08]} Qxd6 {[%emt 0:00:04]} 13. Qxd6 {[%emt 0:00:07]} cxd6 {[%emt 0:00:04]} 14. Bf4 {[%emt 0:01:33]} Rd8 {[%emt 0:00:59]} 15. Rd1 {[%emt 0:16:16]} d5 {[%emt 0:05:17]} 16. h3 {[%emt 0:04:30]} Bf5 {[%emt 0:06:04]} 17. Na3 {[%emt 0:00:54]} Ne6 {[%emt 0:04:48]} 18. Be5 {[%emt 0:06:20]} Be4 {[%emt 0:02:30]} 19. Nd4 {[%emt 0:05:30]} Ng6 {[%emt 0:04:39]} 20. Nxe6 {[%emt 0:00:49]} fxe6 {[%emt 0:00:22]} 21. Bd4 {[%emt 0:00:37]} Bxc2 {[%emt 0:03:48]} 22. Nxc2 {[%emt 0:00:05]} Bxd4 {[%emt 0:22:44]} 23. cxd4 {[%emt 0:13:50]} Rac8 {[%emt 0:04:33]} 24. Rac1 {[%emt 0:15:26]} 1/2-1/2

[Event "Biel Master Tournament 2019"]
[Site "Biel"]
[Date "2019.07.30"]
[Round "8.9"]
[White "Shyam, Sundar M."]
[Black "Santos Latasa, Jaime"]
[Result "1-0"]
[ECO "B30"]
[WhiteElo "2520"]
[BlackElo "2594"]
[Annotator "RC"]
[PlyCount "125"]
[EventDate "2019.07.20"]
[EventType "swiss"]
[EventCountry "SUI"]
[SourceTitle "playchess.com"]
[Source "ChessBase"]
[SourceQuality "1"]
[TimeControl "40/5400+30:1800+30"]

1. e4 {[%emt 0:01:31]} c5 {[%emt 0:00:51]} 2. Nf3 {[%emt 0:00:08]} Nc6 {[%emt 0:00:13]} 3. Bb5 {[%emt 0:00:14]} Nf6 {[%emt 0:00:09]} 4. Nc3 {[%emt 0:01:21]} Nd4 {[%emt 0:00:14]} 5. e5 {[%emt 0:05:37]} Nxb5 {[%emt 0:00:19]} 6. Nxb5 {[%emt 0:00:09]} Nd5 {[%emt 0:00:05]} 7. O-O {[%emt 0:00:10]} a6 {[%emt 0:02:36]} 8. Nc3 {[%emt 0:00:22]} Nxc3 {[%emt 0:01:10]} 9. dxc3 {[%emt 0:00:13]} d5 {[%emt 0:01:31]} 10. Be3 {[%emt 0:12:30]} e6 {[%emt 0:01:56]} 11. Ng5 {[%emt 0:00:19]} Qc7 {[%emt 0:04:36]} 12. f4 {[%emt 0:06:20]} h6 {[%emt 0:04:27]} 13. Qh5 {[%emt 0:04:11]} g6 {[%emt 0:06:29]} 14. Qh3 {[%emt 0:03:31]} Bd7 {[%emt 0:00:15]} 15. Rad1 {[%emt 0:02:22]} Bc6 {[%emt 0:03:39]} 16. Nxe6 {[%emt 0:06:51]} fxe6 {[%emt 0:00:20]} 17. Qxe6+ {[%emt 0:00:03]} Qe7 {[%emt 0:00:22]} 18. Qxg6+ {[%emt 0:00:05]} Qf7 {[%emt 0:00:08]} 19. Qxf7+ {[%emt 0:01:48]} Kxf7 {[%emt 0:00:11]} 20. f5 {[%emt 0:00:10]} Rg8 {[%emt 0:05:10]} 21. Bf2 {[%emt 0:20:42]} Be7 {[%emt 0:06:25]} 22. Bg3 {[%emt 0:07:15]} Bg5 {[%emt 0:04:18]} 23. Rfe1 {[%emt 0:04:11]} h5 {[%emt 0:02:47]} 24. Bf2 {[%emt 0:03:46]} Be7 {[%emt 0:08:02]} 25. f6 {[%emt 0:04:20]} Bf8 {[%emt 0:00:09]} 26. e6+ {[%emt 0:00:10]} Kxf6 {[%emt 0:00:05]} 27. e7 {[%emt 0:00:02]} Bg7 {[%emt 0:00:06]} 28. Bxc5 {[%emt 0:00:22]} Kg6 {[%emt 0:03:01]} 29. Re6+ {[%emt 0:08:30]} Kh7 {[%emt 0:00:17]} 30. Rf1 {[%emt 0:01:17]} Bh6 {[%emt 0:03:20]} 31. Rff6 {[%emt 0:05:09]} Bg5 {[%emt 0:01:45]} 32. Rf7+ {[%emt 0:00:25]} Rg7 {[%emt 0:00:06]} 33. Rf8 {[%emt 0:00:08]} Rg8 {[%emt 0:00:10]} 34. Rf7+ {[%emt 0:00:01]} Rg7 {[%emt 0:00:06]} 35. Rf8 {[%emt 0:00:21]} Rg8 {[%emt 0:00:04]} 36. Re5 {[%emt 0:00:45]} Kg6 {[%emt 0:01:21]} 37. g3 {[%emt 0:02:26]} Re8 {[%emt 0:00:47]} 38. h4 {[%emt 0:00:42]} Bh6 {[%emt 0:00:26]} 39. Rff5 {[%emt 0:00:30]} Bd7 {[%emt 0:01:09]} 40. Rf2 {[%emt 0:00:25]} Bc6 {[%emt 0:00:07]} 41. Kh2 {[%emt 0:07:27]} Rg7 {[%emt 0:03:22]} 42. Re6+ {[%emt 0:00:24]} Kh7 {[%emt 0:00:06]} 43. Rff6 {[%emt 0:00:05]} Bc1 {[%emt 0:00:12]} 44. Re5 {[%emt 0:00:14]} Rg6 {[%emt 0:01:01]} 45. Rxh5+ {[%emt 0:02:56]} Bh6 {[%emt 0:00:06]} 46. Rf7+ {[%emt 0:03:01]} Rg7 {[%emt 0:00:33]} 47. Rf8 {[%emt 0:02:31]} Kg6 {[%emt 0:01:05]} 48. Rxe8 {[%emt 0:01:56]} Bxe8 {[%emt 0:00:09]} 49. Rxd5 {[%emt 0:00:04]} Kf7 {[%emt 0:00:19]} 50. Kh3 {[%emt 0:05:12]} Bc1 {[%emt 0:00:20]} 51. Ba3 {[%emt 0:01:45]} Rg6 {[%emt 0:01:31]} 52. g4 {[%emt 0:02:47]} Rf6 {[%emt 0:00:47]} 53. g5 {[%emt 0:00:37]} Rf1 {[%emt 0:00:22]} 54. Rd8 {[%emt 0:01:31]} Rh1+ {[%emt 0:00:23]} 55. Kg3 {[%emt 0:03:25]} Rg1+ {[%emt 0:00:37]} 56. Kf2 {[%emt 0:00:05]} Rg4 {[%emt 0:00:16]} 57. Kf3 {[%emt 0:00:03]} Rg1 {[%emt 0:00:13]} 58. Bc5 {[%emt 0:00:53]} Bc6+ {[%emt 0:00:20]} 59. Kf2 {[%emt 0:00:10]} Rg2+ {[%emt 0:00:26]} 60. Kf1 {[%emt 0:00:02]} Rxc2 {[%emt 0:01:35]} 61. Rf8+ {[%emt 0:00:08]} Kg7 {[%emt 0:00:06]} 62. Bd4+ {[%emt 0:00:34]} Kh7 {[%emt 0:00:07]} 63. Rf7+ {[%emt 0:00:31]} 1-0

[Event "Biel Master Tournament 2019"]
[Site "Biel"]
[Date "2019.07.30"]
[Round "8.11"]
[White "Vishnu Prasanna. V"]
[Black "Sedlak, Nikola"]
[Result "0-1"]
[ECO "C11"]
[WhiteElo "2505"]
[BlackElo "2586"]
[Annotator "ChessBase"]
[PlyCount "74"]
[EventDate "2019.07.20"]
[EventType "swiss"]
[EventCountry "SUI"]
[SourceTitle "playchess.com"]
[Source "ChessBase"]
[SourceQuality "1"]
[TimeControl "40/5400+30:1800+30"]

1. e4 {[%emt 0:00:00]} e6 {[%emt 0:00:01]} 2. d4 {[%emt 0:00:00]} d5 {[%emt 0:00:10]} 3. Nc3 {[%emt 0:00:00]} Nf6 {[%emt 0:00:34]} 4. e5 {[%emt 0:00:17]} Nfd7 {[%emt 0:00:32]} 5. Nce2 {[%emt 0:00:14]} c5 {[%emt 0:00:45]} 6. c3 {[%emt 0:00:25]} Nc6 {[%emt 0:02:53]} 7. f4 {[%emt 0:02:06]} b5 {[%emt 0:07:28]} 8. a3 {[%emt 0:03:27]} c4 {[%emt 0:00:49]} 9. Nf3 {[%emt 0:01:00]} Nb6 {[%emt 0:02:09]} 10. g4 {[%emt 0:05:01]} h5 {[%emt 0:04:26]} 11. gxh5 {[%emt 0:01:23]} Rxh5 {[%emt 0:00:51]} 12. Be3 {[%emt 0:07:01]} f5 {[%emt 0:11:16]} 13. exf6 {[%emt 0:11:18]} Qxf6 {[%emt 0:01:00]} 14. Bg2 {[%emt 0:02:35]} Ne7 {[%emt 0:10:52]} 15. Ng3 {[%emt 0:07:04]} Rh8 {[%emt 0:00:34]} 16. f5 {[%emt 0:00:58]} Nxf5 {[%emt 0:00:26]} 17. Nxf5 {[%emt 0:05:14]} Qxf5 {[%emt 0:02:50]} 18. Ne5 {[%emt 0:06:21]} Be7 {[%emt 0:01:32]} 19. Rf1 {[%emt 0:07:16]} Qh5 {[%emt 0:05:27]} 20. Qb1 {[%emt 0:07:42]} Bf6 {[%emt 0:09:00]} 21. Rf3 {[%emt 0:07:08]} Rg8 {[%emt 0:07:01]} 22. Qd1 {[%emt 0:12:06]} Bd7 {[%emt 0:01:51]} 23. a4 {[%emt 0:03:26]} bxa4 {[%emt 0:07:30]} 24. Bh3 {[%emt 0:01:59]} Qh4+ {[%emt 0:05:42]} 25. Bf2 {[%emt 0:02:15]} Qe4+ {[%emt 0:00:21]} 26. Re3 {[%emt 0:00:20]} Qh1+ {[%emt 0:00:27]} 27. Bf1 {[%emt 0:00:07]} Qxh2 {[%emt 0:00:28]} 28. Qg4 {[%emt 0:03:54]} Bxe5 {[%emt 0:01:15]} 29. Rxe5 {[%emt 0:02:38]} O-O-O {[%emt 0:02:51]} 30. Re2 {[%emt 0:00:53]} Rdf8 {[%emt 0:01:33]} 31. Qg3 {[%emt 0:00:47]} Qh7 {[%emt 0:06:24]} 32. Bg1 {[%emt 0:00:13]} Kb7 {[%emt 0:00:38]} 33. Bh2 {[%emt 0:00:21]} Ka8 {[%emt 0:01:13]} 34. Bg2 {[%emt 0:00:52]} Rh8 {[%emt 0:00:58]} 35. Bf1 {[%emt 0:00:35]} Qd3 {[%emt 0:02:02]} 36. Qg2 {[%emt 0:00:32]} a3 {[%emt 0:00:20]} 37. Rd1 {[%emt 0:00:30]} Rxh2 {[%emt 0:01:58]} 0-1

[Event "Biel Master Tournament 2019"]
[Site "Biel"]
[Date "2019.07.30"]
[Round "8.12"]
[White "Lalith Babu M R"]
[Black "Harika, Dronavalli"]
[Result "1-0"]
[ECO "D38"]
[WhiteElo "2580"]
[BlackElo "2425"]
[Annotator "ChessBase"]
[PlyCount "95"]
[EventDate "2019.07.20"]
[EventType "swiss"]
[EventCountry "SUI"]
[SourceTitle "playchess.com"]
[Source "ChessBase"]
[SourceQuality "1"]
[TimeControl "40/5400+30:1800+30"]

1. d4 {[%emt 0:00:00]} Nf6 {[%emt 0:02:13]} 2. c4 {[%emt 0:00:00]} e6 {[%emt 0:00:06]} 3. Nc3 {[%emt 0:00:00]} Bb4 {[%emt 0:00:29]} 4. Nf3 {[%emt 0:00:00]} d5 {[%emt 0:00:45]} 5. cxd5 {[%emt 0:00:05]} exd5 {[%emt 0:00:06]} 6. Bf4 {[%emt 0:00:04]} c6 {[%emt 0:02:33]} 7. a3 {[%emt 0:07:56]} Bxc3+ {[%emt 0:15:55]} 8. bxc3 {[%emt 0:00:05]} Ne4 {[%emt 0:00:07]} 9. Rc1 {[%emt 0:00:19]} g5 {[%emt 0:01:39]} 10. Bxb8 {[%emt 0:02:20]} Rxb8 {[%emt 0:00:05]} 11. e3 {[%emt 0:00:06]} Bg4 {[%emt 0:03:59]} 12. Be2 {[%emt 0:10:06]} Bxf3 {[%emt 0:02:54]} 13. gxf3 {[%emt 0:06:14]} Nd6 {[%emt 0:00:29]} 14. Bd3 {[%emt 0:00:05]} f5 {[%emt 0:04:28]} 15. c4 {[%emt 0:07:28]} dxc4 {[%emt 0:06:01]} 16. Bxc4 {[%emt 0:00:05]} Nxc4 {[%emt 0:04:53]} 17. Rxc4 {[%emt 0:00:55]} O-O {[%emt 0:00:08]} 18. Rc5 {[%emt 0:02:32]} Kh8 {[%emt 0:02:08]} 19. O-O {[%emt 0:22:44]} Qf6 {[%emt 0:05:05]} 20. d5 {[%emt 0:01:10]} cxd5 {[%emt 0:16:47]} 21. Qxd5 {[%emt 0:00:27]} Qg7 {[%emt 0:06:40]} 22. Qc4 {[%emt 0:03:45]} Rf7 {[%emt 0:03:42]} 23. Rd1 {[%emt 0:02:44]} Rbf8 {[%emt 0:00:37]} 24. Rc8 {[%emt 0:00:40]} h6 {[%emt 0:04:09]} 25. Rd6 {[%emt 0:07:03]} Kh7 {[%emt 0:01:44]} 26. Rc5 {[%emt 0:02:02]} Kh8 {[%emt 0:02:28]} 27. Qd3 {[%emt 0:02:36]} Rf6 {[%emt 0:03:37]} 28. Rd7 {[%emt 0:01:45]} R6f7 {[%emt 0:00:25]} 29. Rcc7 {[%emt 0:02:16]} Rxd7 {[%emt 0:00:10]} 30. Rxd7 {[%emt 0:00:02]} Rf7 {[%emt 0:00:11]} 31. Rd6 {[%emt 0:00:05]} Kh7 {[%emt 0:01:54]} 32. Qd5 {[%emt 0:02:29]} g4 {[%emt 0:01:55]} 33. f4 {[%emt 0:00:17]} h5 {[%emt 0:02:15]} 34. e4 {[%emt 0:01:09]} h4 {[%emt 0:00:34]} 35. Kg2 {[%emt 0:00:57]} Kg8 {[%emt 0:04:19]} 36. exf5 {[%emt 0:04:13]} Kh7 {[%emt 0:00:24]} 37. Rg6 {[%emt 0:01:44]} Qf8 {[%emt 0:01:05]} 38. Rxg4 {[%emt 0:00:14]} Rg7 {[%emt 0:00:38]} 39. h3 {[%emt 0:01:01]} Qxa3 {[%emt 0:00:56]} 40. f6 {[%emt 0:00:26]} Rxg4+ {[%emt 0:00:31]} 41. hxg4 {[%emt 0:30:06]} Kg6 {[%emt 0:02:48]} 42. Qg5+ {[%emt 0:00:00]} Kf7 {[%emt 0:00:09]} 43. Qg7+ {[%emt 0:00:00]} Ke6 {[%emt 0:00:02]} 44. f5+ {[%emt 0:00:00]} Kd5 {[%emt 0:00:16]} 45. Qxb7+ {[%emt 0:00:00]} Kd4 {[%emt 0:00:14]} 46. Qe7 {[%emt 0:00:00]} Qa1 {[%emt 0:02:39]} 47. f7 {[%emt 0:00:00]} h3+ {[%emt 0:00:04]} 48. Kh2 {[%emt 0:00:00]} 1-0

[Event "Biel Master Tournament 2019"]
[Site "Biel"]
[Date "2019.07.30"]
[Round "8.13"]
[White "Aryan, Chopra"]
[Black "Baeumer, Lars"]
[Result "1-0"]
[ECO "C54"]
[WhiteElo "2553"]
[BlackElo "2245"]
[Annotator "ChessBase"]
[PlyCount "83"]
[EventDate "2019.07.20"]
[EventType "swiss"]
[EventCountry "SUI"]
[SourceTitle "playchess.com"]
[Source "ChessBase"]
[SourceQuality "1"]
[TimeControl "40/5400+30:1800+30"]

1. e4 {[%emt 0:00:00]} e5 {[%emt 0:00:00]} 2. Nf3 {[%emt 0:00:00]} Nc6 {[%emt 0:00:00]} 3. Bc4 {[%emt 0:00:00]} Bc5 {[%emt 0:00:18]} 4. c3 {[%emt 0:00:00]} Nf6 {[%emt 0:00:21]} 5. d4 {[%emt 0:00:03]} exd4 {[%emt 0:00:17]} 6. e5 {[%emt 0:00:05]} d5 {[%emt 0:00:39]} 7. Bb5 {[%emt 0:00:06]} Ne4 {[%emt 0:00:23]} 8. cxd4 {[%emt 0:00:06]} Bb6 {[%emt 0:00:41]} 9. Nc3 {[%emt 0:00:09]} O-O {[%emt 0:00:49]} 10. Be3 {[%emt 0:00:11]} Bg4 {[%emt 0:01:10]} 11. h3 {[%emt 0:00:17]} Bh5 {[%emt 0:00:23]} 12. Qc2 {[%emt 0:00:31]} Ba5 {[%emt 0:01:09]} 13. O-O {[%emt 0:01:33]} Bxf3 {[%emt 0:06:25]} 14. gxf3 {[%emt 0:00:08]} Nxd4 {[%emt 0:11:38]} 15. Bxd4 {[%emt 0:00:06]} Qg5+ {[%emt 0:00:37]} 16. Kh1 {[%emt 0:00:11]} Bxc3 {[%emt 0:02:35]} 17. bxc3 {[%emt 0:00:46]} Qf5 {[%emt 0:12:12]} 18. Rfc1 {[%emt 0:01:58]} Qxh3+ {[%emt 0:13:14]} 19. Kg1 {[%emt 0:00:02]} Ng5 {[%emt 0:04:26]} 20. Be2 {[%emt 0:00:07]} Nxf3+ {[%emt 0:02:56]} 21. Bxf3 {[%emt 0:00:02]} Qxf3 {[%emt 0:00:09]} 22. Qd1 {[%emt 0:02:26]} Qe4 {[%emt 0:02:18]} 23. Qh5 {[%emt 0:04:35]} Rfe8 {[%emt 0:04:36]} 24. Re1 {[%emt 0:05:52]} Qf4 {[%emt 0:05:30]} 25. Re3 {[%emt 0:03:00]} Re6 {[%emt 0:03:02]} 26. Rf3 {[%emt 0:05:08]} Rg6+ {[%emt 0:02:04]} 27. Qxg6 {[%emt 0:02:29]} Qxf3 {[%emt 0:00:05]} 28. Qg2 {[%emt 0:00:21]} Qxg2+ {[%emt 0:01:32]} 29. Kxg2 {[%emt 0:00:02]} Re8 {[%emt 0:04:08]} 30. f4 {[%emt 0:03:27]} b6 {[%emt 0:02:08]} 31. Rd1 {[%emt 0:04:01]} Kf8 {[%emt 0:05:14]} 32. Kf3 {[%emt 0:02:50]} g6 {[%emt 0:02:13]} 33. Bf2 {[%emt 0:01:48]} c6 {[%emt 0:04:23]} 34. Bh4 {[%emt 0:00:41]} Rb8 {[%emt 0:04:16]} 35. Bf6 {[%emt 0:00:36]} Ke8 {[%emt 0:01:17]} 36. f5 {[%emt 0:01:32]} gxf5 {[%emt 0:00:33]} 37. Kf4 {[%emt 0:02:05]} Kd7 {[%emt 0:03:59]} 38. Kxf5 {[%emt 0:00:07]} b5 {[%emt 0:00:30]} 39. Rh1 {[%emt 0:00:33]} b4 {[%emt 0:00:40]} 40. cxb4 {[%emt 0:00:33]} Rxb4 {[%emt 0:00:22]} 41. Rxh7 {[%emt 0:30:06]} Ke8 {[%emt 0:06:07]} 42. e6 {[%emt 0:00:00]} 1-0